{"text_format":"1","workbook":"xlsx","n_sheets":1,"sheets":["count"],"not_rendered":{"charts":0,"images":0,"macros":1,"external_links":0,"defined_names":1,"comments":0,"pivot_tables":0},"unopened":[],"bounds":{"document_bytes":16777216,"sheet_cells":100000,"rows_first":2000,"rows_last":500,"rows_between":2000,"halvings":0,"cell_chars":16384,"cell_head_chars":4096},"cells_cut":0,"cells_raw":0,"read":"whole","date_system":"1900"}

{"sheet":"count","index":0,"n_rows":55,"n_cols":14,"rows_kept":55,"cut":false,"hidden":false,"merged":[[3,1,3,3],[44,2,47,2],[29,1,32,1],[4,1,7,1],[8,1,16,1],[13,2,16,2],[17,2,21,2],[22,2,26,2],[4,2,4,3],[5,2,5,3],[6,2,6,3],[34,2,37,2],[38,2,41,2],[8,2,12,2],[34,1,41,1],[7,4,7,7],[44,1,53,1],[15,9,16,9],[17,9,22,9],[22,5,23,5],[24,5,26,5],[50,2,53,2],[17,1,21,1],[22,1,26,1]]}
["保有個人情報開示請求　収入印紙・切手代等計算シート"]
[]
["請求する文書にチェックを入れてください。黄色網掛け部分に必要な収入印紙代、封筒、切手代が計算され、表示されます。"]
[null,null,null,null,"令和２年","令和３年","令和４年","令和５年",null,"収入印紙",null,{"$f":"IF(L10<>\"ERROR\",(COUNTIFS(E33:H33,\"<>0\")+COUNTIFS(E43:H43,\"<>0\")+COUNTIFS(E49:H49,\"<>0\")+COUNTIFS(E55:H55,\"<>0\"))*300,\"ERROR\")","v":0}]
[null,"⑴受験者\n管理ファイル","第Ⅰ回",null,null,null,null,null,null,"封筒",null,{"$f":"IF(L10<>\"ERROR\",IF(L7>1,IF(SUM(I35:I54)>0,\"角形２号\",IF(M7>=45,\"角形２号\",\"長形３号\")),\"無\"),\"ERROR\")","v":"無"}]
[null,null,"第Ⅱ回",null,null,null,null,null,null,"切手代",{"$f":"IF(L10<>\"ERROR\",IF(L7>1,IF(AND(M7<=L16,L5=\"長形３号\"),M16,IF(AND(M7<=L17,L5=\"長形３号\"),M17,IF(M7<=L18,M18,IF(M7<=L19,M19,IF(M7<=L20,M20,IF(M7<=L21,M21,IF(M7<=L22,M22,M23))))))),0),\"ERROR\")","v":0},{"$f":"IF(K6=\"ERROR\",\"ERROR\",K6+IF(AND(K6>1,N6=TRUE),350))","v":0},"簡易書留",false]
[null,null,"論文式",null,null,null,null,null,null,"枚数","合計",{"$f":"SUM(L8:L11)","v":0},{"$f":"L7*4","v":0}]
[null,null,null,null,null,null,null,null,null,null,"通知書",{"$f":"IF(SUM(L9:L11)>0,1,0)","v":0}]
[null,"⑵論文式試験採点前答案","必修科目","必修全選択",null,null,null,null,null,null,"管理ファイル",{"$f":"I33","v":0}]
[null,null,null,"会計学",null,null,null,null,null,null,"採点前答案",{"$f":"IF(COUNTIFS(E43:H43,\"ERROR\")>=1,\"ERROR\",SUM(I35:I42))","v":0}]
[null,null,null,"監査論",null,null,null,null,null,null,"マークシート",{"$f":"SUM(I45:I54)","v":0}]
[null,null,null,"企業法",null,null,null,null,null,"※同一年で選択科目を複数選ぶとERRORとなります。"]
[null,null,null,"租税法"]
[null,null,"選択科目","経営学"]
[null,null,null,"経済学",null,null,null,null,null,null,"gまで","封筒分マイナス","料金"]
[null,null,null,"民法",null,null,null,null,null,"定形",25,{"$f":"K16-5","v":20},84]
[null,null,null,"統計学",null,null,null,null,null,null,50,{"$f":"K17-5","v":45},94,"11枚まで"]
[null,"⑶短答式試験マークシート","第Ⅰ回","全選択",null,null,null,null,null,"定形外",50,{"$f":"K18-15","v":35},120]
[null,null,null,"財務会計論",null,null,null,null,null,null,100,{"$f":"K19-15","v":85},140,"12枚以上"]
[null,null,null,"管理会計論",null,null,null,null,null,null,150,135,210]
[null,null,null,"監査論",null,null,null,null,null,null,250,235,250]
[null,null,null,"企業法",null,null,null,null,null,null,500,485,390]
[null,"⑷短答式試験マークシート","第Ⅱ回","全選択",null,"↑令和３年短答式試験マークシートを請求される方はこちらをチェック",null,null,null,null,1000,985,580]
[null,null,null,"財務会計論"]
[null,null,null,"管理会計論"]
[null,null,null,"監査論"]
[null,null,null,"企業法"]
[]
[]
[null,"受験者\n管理\nファイル",null,"第Ⅰ回",false,false,false,false]
[null,null,null,"第Ⅱ回",false,null,false,false]
[null,null,null,"論文式",false,false,false,false]
[null,null,null,"合計",{"$f":"IF(AND((E30=FALSE),(E31=FALSE),(E32=TRUE)),2,(COUNTIF(E30:E31,TRUE)*2))","v":0},{"$f":"IF(AND((F30=FALSE),(F32=TRUE)),2,(COUNTIF(F30,TRUE)*2))","v":0},{"$f":"IF(AND((G30=FALSE),(G31=FALSE),(G32=TRUE)),2,(COUNTIF(G30:G31,TRUE)*2))","v":0},{"$f":"IF(AND((H30=FALSE),(H31=FALSE),(H32=TRUE)),2,(COUNTIF(H30:H31,TRUE)*2))","v":0},{"$f":"SUM(E33:H33)","v":0}]
[null,null,null,null,false,false,false,false]
[null,"論文式試験採点前答案","必修科目","会計学",false,false,false,false,{"$f":"(COUNTIF(E35:H35,TRUE))*10","v":0}]
[null,null,null,"監査論",false,false,false,false,{"$f":"(COUNTIF(E36:H36,TRUE))*4","v":0}]
[null,null,null,"企業法",false,false,false,false,{"$f":"(COUNTIF(E37:H37,TRUE))*2","v":0}]
[null,null,null,"租税法",false,false,false,false,{"$f":"(COUNTIF(E38:E38,TRUE)*7+COUNTIF(F38:H38,TRUE)*6)","v":0}]
[null,null,"選択科目","経営学",false,false,false,false,{"$f":"(COUNTIF(E39:H39,TRUE)*4)","v":0}]
[null,null,null,"経済学",false,false,false,false,{"$f":"(COUNTIF(E40:F40,TRUE))*3+COUNTIF(G40:H40,TRUE)*4","v":0}]
[null,null,null,"民法",false,false,false,false,{"$f":"(COUNTIF(E41:H41,TRUE))*4","v":0}]
[null,null,null,"統計学",false,false,false,false,{"$f":"(COUNTIF(E42:E42,TRUE)*6+COUNTIF(F42:F42,TRUE)*7+COUNTIF(G42:G42,TRUE)*8+COUNTIF(H42:H42,TRUE)*6)","v":0}]
[null,null,null,"合計",{"$f":"IF(COUNTIF(E39:E42,TRUE)>1,\"ERROR\",COUNTIF(E35:E42,TRUE))","v":0},0,0,{"$f":"IF(COUNTIF(H39:H42,TRUE)>1,\"ERROR\",COUNTIF(H35:H42,TRUE))","v":0},{"$f":"IF(COUNTIF(I39:I42,TRUE)>1,\"ERROR\",COUNTIF(I35:I42,TRUE))","v":0}]
[null,null,null,null,false,false,false,false]
[null,"短答式試験マークシート","第Ⅰ回","財務会計論",false,false,false,false,{"$f":"(COUNTIF(E45:H45,TRUE))*1","v":0}]
[null,null,null,"管理会計論",false,false,false,false,{"$f":"(COUNTIF(E46:H46,TRUE))*1","v":0}]
[null,null,null,"監査論",false,false,false,false,{"$f":"(COUNTIF(E47:H47,TRUE))*1","v":0}]
[null,null,null,"企業法",false,false,false,false,{"$f":"(COUNTIF(E48:H48,TRUE))*1","v":0}]
[null,null,null,"合計",{"$f":"(COUNTIF(E45:E48,TRUE))","v":0},{"$f":"(COUNTIF(F45:F48,TRUE))","v":0},{"$f":"(COUNTIF(G45:G48,TRUE))","v":0},{"$f":"(COUNTIF(H45:H48,TRUE))","v":0},{"$f":"(COUNTIF(E49:H49,TRUE))*1","v":0}]
[null,null,null,null,false,false,false,false]
[null,null,"第Ⅱ回","財務会計論",false,false,false,false,{"$f":"(COUNTIF(E51:H51,TRUE))*1","v":0}]
[null,null,null,"管理会計論",false,false,false,false,{"$f":"(COUNTIF(E52:H52,TRUE))*1","v":0}]
[null,null,null,"監査論",false,false,false,false,{"$f":"(COUNTIF(E53:H53,TRUE))*1","v":0}]
[null,null,null,"企業法",false,false,false,false,{"$f":"(COUNTIF(E54:H54,TRUE))*1","v":0}]
[null,null,null,"合計",{"$f":"(COUNTIF(E51:E54,TRUE))","v":0},{"$f":"(COUNTIF(F51:F54,TRUE))","v":0},{"$f":"(COUNTIF(G51:G54,TRUE))","v":0},{"$f":"(COUNTIF(H51:H54,TRUE))","v":0},{"$f":"(COUNTIF(E55:H55,TRUE))*1","v":0}]